bitfinex-derivatives/quotes_BTCF0:USTF0_20250918
["timestamp","ask_amount","ask_price","bid_price","bid_amount"]
[1758226207360,1.3476939,117560.0,117550.0,2.36224489]
[1758226208462,0.9257424,117560.0,117550.0,2.36224489]
[1758226209363,1.3476939,117560.0,117550.0,2.27721519]
[1758226209758,1.3476939,117560.0,117550.0,2.12427218]
[1758226210762,1.3476539,117560.0,117550.0,2.12427218]
[1758226211362,1.3476539,117560.0,117550.0,1.85526369]
[1758226211564,1.3476539,117560.0,117550.0,2.27721519]
[1758226211759,2.0196054,117560.0,117550.0,1.7864611]
[1758226211965,1.7696054,117560.0,117550.0,1.7864611]
[1758226212154,1.7696054,117560.0,117550.0,1.63351809]
[1758226212358,1.7696054,117560.0,117550.0,1.27271809]
[1758226212553,1.7696054,117560.0,117550.0,0.91191809]
[1758226213769,0.9956854,117560.0,117550.0,0.91191809]
[1758226214069,1.76985018,117560.0,117550.0,0.91191809]
[1758226214665,1.76981018,117560.0,117550.0,0.91191809]
[1758226214865,0.99593018,117560.0,117550.0,0.91191809]
[1758226215169,1.76977018,117560.0,117550.0,0.91191809]
[1758226215371,0.9256224,117560.0,117550.0,0.95445809]
[1758226215567,1.76977018,117560.0,117550.0,1.73733198]
[1758226217167,1.76977018,117560.0,117550.0,1.31525809]
[1758226217364,1.76977018,117560.0,117550.0,1.73733198]
[1758226217365,0.9256224,117560.0,117550.0,1.73733198]
[1758226217566,1.76977018,117560.0,117550.0,1.73733198]
[1758226218273,0.99593018,117560.0,117550.0,1.73733198]
[1758226218464,1.76977018,117560.0,117550.0,1.73733198]
[1758226220271,1.76977018,117560.0,117550.0,1.27271809]
[1758226220470,1.76977018,117560.0,117550.0,1.69479198]
[1758226224563,0.99593018,117560.0,117550.0,1.69479198]
[1758226224770,1.76965018,117560.0,117550.0,1.69479198]
[1758226226567,1.76965018,117560.0,117550.0,1.27271809]
[1758226227074,1.76965018,117560.0,117550.0,0.91191809]
[1758226227276,1.24593018,117560.0,117550.0,0.91191809]
[1758226227472,2.01961018,117560.0,117550.0,0.91191809]
[1758226228573,1.24593018,117560.0,117550.0,0.91191809]
[1758226228776,2.01961018,117560.0,117550.0,0.91191809]
[1758226229279,1.24593018,117560.0,117550.0,0.91191809]
[1758226229477,2.01961018,117560.0,117550.0,0.91191809]
[1758226230077,1.24593018,117560.0,117550.0,0.91191809]
[1758226230277,2.01957018,117560.0,117550.0,0.91191809]
[1758226230478,1.1754224,117560.0,117550.0,0.91191809]
[1758226230678,2.01957018,117560.0,117550.0,0.91191809]
[1758226231078,1.24593018,117560.0,117550.0,0.91191809]
[1758226231481,2.01957018,117560.0,117550.0,0.91191809]
[1758226231882,1.24593018,117560.0,117550.0,0.91191809]
[1758226232076,2.01957018,117560.0,117550.0,0.91191809]
[1758226232276,1.24593018,117560.0,117550.0,0.91191809]
[1758226232480,2.01953018,117560.0,117550.0,0.91191809]
[1758226232882,1.24593018,117560.0,117550.0,0.91191809]
[1758226233077,1.1753824,117560.0,117550.0,0.95138809]
[1758226233277,2.01953018,117560.0,117550.0,0.95138809]
[1758226233477,2.01953018,117560.0,117550.0,0.91191809]
[1758226234583,2.01953018,117560.0,117550.0,1.27271809]
[1758226239374,1.76953018,117560.0,117550.0,1.27271809]
[1758226242683,0.9253824,117560.0,117550.0,1.27271809]
[1758226242886,1.76953018,117560.0,117550.0,1.27271809]
[1758226248187,1.76953018,117560.0,117550.0,1.35774829]
[1758226248383,0.99593018,117560.0,117550.0,1.35774829]
[1758226248589,1.76933018,117560.0,117550.0,1.35774829]
[1758226249089,0.99593018,117560.0,117550.0,1.35774829]
[1758226249290,1.76933018,117560.0,117550.0,1.35774829]
[1758226250297,1.76933018,117560.0,117550.0,1.27271809]
[1758226254691,1.76933018,117560.0,117550.0,1.35774829]
[1758226255397,1.76933018,117560.0,117550.0,1.27271809]
[1758226255789,1.48794262,117560.0,117550.0,1.27271809]
[1758226256385,1.48794262,117560.0,117550.0,0.95097809]
[1758226256592,1.48794262,117560.0,117550.0,1.39680819]
[1758226257798,1.48794262,117560.0,117550.0,1.31177809]
[1758226258199,1.48794262,117560.0,117550.0,1.39680829]
[1758226259703,1.48794262,117560.0,117550.0,1.31177809]
[1758226260806,1.48794262,117560.0,117550.0,0.91191809]
[1758226261103,0.71454262,117560.0,117550.0,0.95097809]
[1758226261403,1.48778262,117560.0,117550.0,0.95097809]
[1758226262401,2.12996273,117560.0,117550.0,0.00191809]
[1758226262705,0.1500102,117550.0,117540.0,0.0002]
[1758226262903,1.60287042,117550.0,117540.0,0.33]
[1758226263812,1.60287042,117550.0,117540.0,0.331]
[1758226264213,1.96367042,117550.0,117540.0,0.331]
[1758226264911,1.98353766,117550.0,117540.0,0.331]
[1758226265113,1.98353766,117550.0,117540.0,0.332]
[1758226266409,2.75669766,117550.0,117540.0,0.332]
[1758226267811,1.86669766,117550.0,117540.0,0.332]
[1758226270218,1.87535451,117550.0,117540.0,0.332]
[1758226271917,1.09353766,117550.0,117540.0,0.332]
[1758226272419,1.86669766,117550.0,117540.0,0.332]
[1758226274813,1.09353766,117550.0,117540.0,0.332]
[1758226275018,1.86665766,117550.0,117540.0,0.332]
[1758226275419,1.50585766,117550.0,117540.0,0.332]
[1758226275609,0.73273766,117550.0,117540.0,0.332]
[1758226275817,1.57273711,117550.0,117540.0,0.332]
[1758226276311,1.93353711,117550.0,117540.0,0.332]
[1758226284126,3.72541711,117550.0,117540.0,0.332]
[1758226285929,2.95229711,117550.0,117540.0,0.332]
[1758226286132,3.72529711,117550.0,117540.0,0.332]
[1758226286526,2.95229711,117550.0,117540.0,0.332]
[1758226286830,3.72529711,117550.0,117540.0,0.332]
[1758226292635,2.38953689,117550.0,117540.0,0.332]
[1758226292837,3.72521711,117550.0,117540.0,0.332]
[1758226303637,3.72521711,117550.0,117540.0,0.002]
[1758226317856,4.00699709,117550.0,117540.0,0.002]
[1758226321365,4.42926719,117550.0,117540.0,0.002]
[1758226325467,4.42926719,117550.0,117510.0,0.3608]
[1758226325468,0.0850519,117520.0,117510.0,0.3608]
[1758226325662,2.56825816,117520.0,117510.0,0.55]
[1758226325866,0.1480464,117500.0,117490.0,0.55182645]
[1758226326055,1.7651866,117500.0,117490.0,1.87409655]
[1758226326363,1.7651866,117500.0,117490.0,1.36675325]
[1758226327167,1.7651866,117500.0,117490.0,1.37275325]
[1758226327570,1.7651866,117500.0,117490.0,1.55373]
[1758226327762,0.9925866,117500.0,117490.0,1.55273]
[1758226327962,1.7651866,117500.0,117490.0,1.55273]
[1758226328464,0.9925866,117500.0,117490.0,1.55273]
[1758226328665,1.7651866,117500.0,117490.0,1.55273]
[1758226329168,1.7661866,117500.0,117490.0,1.56639668]
[1758226329565,1.7661866,117500.0,117490.0,1.56139668]
[1758226329768,1.7651866,117500.0,117490.0,1.56039668]
[1758226330269,1.7651866,117500.0,117490.0,1.30173]
[1758226330967,0.9925866,117500.0,117490.0,1.30173]
[1758226331168,1.7651866,117500.0,117490.0,1.30173]
[1758226331365,1.7651866,117500.0,117490.0,1.31037607]
[1758226331571,0.9925866,117500.0,117490.0,1.31037607]
[1758226331764,1.7652266,117500.0,117490.0,1.31037607]
[1758226332565,0.9925866,117500.0,117490.0,1.31037607]
[1758226332966,1.7652266,117500.0,117490.0,1.31037607]
[1758226333166,1.7652266,117500.0,117490.0,1.30173]
[1758226334973,1.7652266,117500.0,117490.0,1.31018979]
[1758226337366,0.9925866,117500.0,117490.0,1.31018979]
[1758226337569,1.7652266,117500.0,117490.0,1.31018979]
[1758226337969,0.9206864,117500.0,117490.0,1.31018979]
[1758226338474,1.7652266,117500.0,117490.0,1.73245989]
[1758226339174,1.7652266,117500.0,117490.0,1.31018979]
[1758226340178,0.9925866,117500.0,117490.0,1.31018979]
[1758226340379,1.7652266,117500.0,117490.0,1.31018979]
[1758226341080,0.1480464,117500.0,117490.0,1.31018979]
[1758226341279,1.7652266,117500.0,117490.0,1.31018979]
[1758226341578,0.9206864,117500.0,117490.0,1.31018979]
[1758226341780,1.7652266,117500.0,117490.0,1.31018979]
[1758226342980,0.9925866,117500.0,117490.0,1.31018979]
[1758226343173,1.7652266,117500.0,117490.0,1.31018979]
[1758226343879,1.4371565,117500.0,117490.0,2.08883349]
[1758226344078,0.92982,117500.0,117490.0,2.51110359]
[1758226344283,2.38122209,117510.0,117500.0,0.1350364]
[1758226344475,3.15386209,117510.0,117500.0,1.7381065]
[1758226345479,3.15386209,117510.0,117500.0,1.7401065]
[1758226345684,3.15386209,117510.0,117500.0,1.7411065]
[1758226346372,3.15386209,117510.0,117500.0,1.7391065]
[1758226346575,3.15386209,117510.0,117500.0,1.7411065]
[1758226346775,3.15386209,117510.0,117500.0,1.7421065]
[1758226347184,3.13070209,117510.0,117500.0,1.7421065]
[1758226347478,2.66967199,117510.0,117500.0,1.7421065]
[1758226347677,2.66967199,117510.0,117500.0,2.1643766]
[1758226347985,3.00687949,117510.0,117500.0,2.1643766]
[1758226348181,3.09193869,117510.0,117500.0,2.1643766]
[1758226351181,3.0952293,117510.0,117500.0,1.22208]
[1758226351484,3.5562594,117510.0,117500.0,0.86128]
[1758226351876,3.1339893,117510.0,117500.0,0.86128]
[1758226352282,3.1339893,117510.0,117500.0,1.22208]
[1758226356585,3.5562594,117510.0,117500.0,1.22208]
[1758226358387,2.7117192,117510.0,117500.0,1.22208]
[1758226358777,3.1339893,117510.0,117500.0,1.22208]
[1758226358988,3.5562594,117510.0,117500.0,1.22208]
[1758226359988,3.1339893,117510.0,117500.0,1.22208]
[1758226360687,3.1339893,117510.0,117500.0,1.6443501]
[1758226362388,3.1339893,117510.0,117500.0,1.22208]
[1758226362588,3.1339893,117510.0,117500.0,1.6443501]
[1758226363088,3.1339893,117510.0,117500.0,1.22208]
[1758226366795,3.5562594,117510.0,117500.0,1.22208]
[1758226366994,3.5562594,117510.0,117500.0,0.57128]
[1758226368492,3.5562594,117510.0,117500.0,0.534]
[1758226369289,3.5562594,117510.0,117500.0,0.57128]
[1758226374899,3.1339893,117510.0,117500.0,0.88128]
[1758226375093,3.5562594,117510.0,117500.0,0.91128]
[1758226377290,3.5562594,117510.0,117500.0,0.57128]
[1758226377798,2.99333828,117510.0,117500.0,0.57128]
[1758226379203,3.27495736,117510.0,117500.0,0.57128]
[1758226380401,2.22069828,117510.0,117500.0,0.57128]
[1758226380600,2.99317828,117510.0,117500.0,0.57128]
[1758226380800,2.99317828,117510.0,117500.0,0.87128]
[1758226381595,2.99317828,117510.0,117500.0,0.57128]
[1758226382201,2.99317828,117510.0,117500.0,0.86128]
[1758226382202,3.27479736,117510.0,117500.0,0.86128]
[1758226382904,2.50231736,117510.0,117500.0,0.86128]
[1758226383105,3.27479736,117510.0,117500.0,0.86128]
[1758226383806,3.27479736,117510.0,117500.0,0.57128]
[1758226386308,0.71027736,117510.0,117500.0,0.57128]
[1758226386510,1.48275736,117510.0,117500.0,0.57128]
[1758226393412,0.71027736,117510.0,117500.0,0.57128]
[1758226393613,1.48275736,117510.0,117500.0,0.57128]
[1758226394616,0.71027736,117510.0,117500.0,0.57128]
[1758226394802,1.48275736,117510.0,117500.0,0.86128]
[1758226395003,0.71027736,117510.0,117500.0,0.86128]
[1758226395202,0.42865828,117510.0,117500.0,0.86128]
[1758226395414,1.20113828,117510.0,117500.0,0.86128]
[1758226395613,1.48275736,117510.0,117500.0,0.86128]
[1758226398911,1.48275736,117510.0,117500.0,0.534]
[1758226400118,1.48275736,117510.0,117500.0,0.57007]
[1758226403426,1.48275736,117510.0,117500.0,0.90007]
[1758226404623,1.48275736,117510.0,117500.0,0.57007]
[1758226404829,1.48275736,117510.0,117500.0,0.88007]
[1758226405026,0.71027736,117510.0,117500.0,0.88007]
[1758226405324,1.48271736,117510.0,117500.0,0.88007]
[1758226406130,1.48271736,117510.0,117500.0,0.57007]
[1758226406321,1.48271736,117510.0,117500.0,0.91007]
[1758226407127,1.48271736,117510.0,117500.0,0.88007]
[1758226408231,1.48271736,117510.0,117500.0,0.534]
[1758226408431,1.84351736,117510.0,117500.0,0.534]
[1758226411631,1.07107736,117510.0,117500.0,0.534]
[1758226411827,1.84347736,117510.0,117500.0,0.534]
[1758226412934,1.07107736,117510.0,117500.0,0.57186]
[1758226413142,1.84347736,117510.0,117500.0,0.57186]
[1758226415636,1.48267736,117510.0,117500.0,0.57186]
[1758226416639,1.84347736,117510.0,117500.0,0.534]
[1758226417339,1.07107736,117510.0,117500.0,0.534]
[1758226417637,1.07107736,117510.0,117500.0,0.57186]
[1758226417840,1.84347736,117510.0,117500.0,0.57186]
[1758226418439,0.5078392,117510.0,117500.0,0.57186]
[1758226418639,1.84343736,117510.0,117500.0,0.57186]
[1758226423342,1.84343736,117510.0,117500.0,0.534]
[1758226423735,2.37505644,117510.0,117500.0,0.534]
[1758226424241,2.16046195,117510.0,117500.0,0.534]
[1758226426644,2.16902695,117510.0,117500.0,0.534]
[1758226431147,2.45064603,117510.0,117500.0,0.534]
[1758226433748,2.20064603,117510.0,117500.0,0.534]
[1758226434849,2.20064603,117510.0,117500.0,0.234]
[1758226439963,2.62319445,117510.0,117500.0,0.234]
[1758226440356,2.62343405,117510.0,117500.0,0.234]
[1758226441664,2.62339405,117510.0,117500.0,0.234]
[1758226442563,1.85107405,117510.0,117500.0,0.234]
[1758226442758,2.62339405,117510.0,117500.0,0.234]
[1758226442958,1.85107405,117510.0,117500.0,0.234]
[1758226443158,2.62339405,117510.0,117500.0,0.234]
[1758226447261,1.87090631,117510.0,117500.0,0.234]
[1758226447453,2.64322631,117510.0,117500.0,0.234]
[1758226449563,2.28242631,117510.0,117500.0,0.234]
[1758226449763,2.64322631,117510.0,117500.0,0.234]
[1758226451862,2.64322631,117510.0,117500.0,0.504]
[1758226453369,2.64322631,117510.0,117500.0,0.124]
[1758226458465,4.43578631,117510.0,117500.0,0.124]
[1758226460974,3.66346631,117510.0,117500.0,0.124]
[1758226461578,4.43574631,117510.0,117500.0,0.124]
[1758226465371,4.43574631,117510.0,117500.0,1e-07]
[1758226465575,0.05927,117500.0,117490.0,0.0002]
[1758226465772,1.77278126,117500.0,117490.0,0.39]
[1758226466566,2.54506126,117500.0,117490.0,0.39]
[1758226466766,2.54506126,117500.0,117490.0,0.392]
[1758226467576,0.1077033,117490.0,117480.0,0.02021]
[1758226467771,1.77278856,117490.0,117480.0,0.39001]
[1758226467972,1.77278856,117490.0,117480.0,0.62001]
[1758226468477,2.54502856,117490.0,117480.0,0.62001]
[1758226468670,2.54502856,117490.0,117480.0,0.62101]
[1758226468869,1.77278856,117490.0,117480.0,0.62101]
[1758226469374,2.54506856,117490.0,117480.0,0.62001]
[1758226469767,2.12252014,117490.0,117480.0,0.62001]
[1758226470379,1.35024014,117490.0,117480.0,0.62001]
[1758226470571,2.12252014,117490.0,117480.0,0.62001]
[1758226471271,1.35024014,117490.0,117480.0,0.62001]
[1758226472072,2.12248014,117490.0,117480.0,0.62001]
[1758226472881,3.91512014,117490.0,117480.0,0.62001]
[1758226475682,3.91614274,117490.0,117480.0,0.62001]
[1758226475882,3.14390274,117490.0,117480.0,0.62001]
[1758226476181,3.91614274,117490.0,117480.0,0.62001]
[1758226476682,3.14390274,117490.0,117480.0,0.62001]
[1758226476881,3.91614274,117490.0,117480.0,0.62001]
[1758226477081,3.14390274,117490.0,117480.0,0.62001]
[1758226477379,3.91614274,117490.0,117480.0,0.62001]
[1758226479084,4.33869116,117490.0,117480.0,0.62001]
[1758226485586,3.14390274,117490.0,117480.0,0.62001]
[1758226485792,3.14390274,117490.0,117480.0,0.65586]
[1758226486091,3.91614274,117490.0,117480.0,0.65586]
[1758226486693,3.14390274,117490.0,117480.0,0.65586]
[1758226486895,3.0710459,117490.0,117480.0,0.65586]
[1758226487085,3.91614274,117490.0,117480.0,0.65586]
[1758226487391,3.91614274,117490.0,117480.0,0.98586]
[1758226488204,3.91614274,117490.0,117480.0,0.65586]
[1758226489803,3.14390274,117490.0,117480.0,0.65586]
[1758226490104,3.91610274,117490.0,117480.0,0.65586]
[1758226493807,3.0710059,117490.0,117480.0,0.65586]
[1758226494008,3.91610274,117490.0,117480.0,0.65586]
[1758226495709,3.55530274,117490.0,117480.0,0.65586]
[1758226495901,1.9380059,117490.0,117480.0,1.19586]
[1758226496204,3.13275432,117490.0,117480.0,1.19586]
[1758226496904,3.55530274,117490.0,117480.0,1.19586]
[1758226497797,2.78310274,117490.0,117480.0,1.19586]
[1758226497994,3.55530274,117490.0,117480.0,1.19586]
[1758226498405,3.13275432,117490.0,117480.0,1.19586]
[1758226498605,3.55530274,117490.0,117480.0,1.19586]
[1758226499005,3.13275432,117490.0,117480.0,1.19586]
[1758226499204,3.55530274,117490.0,117480.0,1.55666]
[1758226499395,2.33792432,117490.0,117480.0,1.73971842]
[1758226499601,3.07344432,117490.0,117480.0,1.29407292]
[1758226499909,2.95498938,117490.0,117480.0,1.62356292]
[1758226500408,2.95498938,117490.0,117480.0,1.55356292]
[1758226501405,2.95498938,117490.0,117480.0,1.63864342]
[1758226501907,2.95498938,117490.0,117480.0,1.63964342]
[1758226502506,2.6733259,117490.0,117480.0,1.63964342]
[1758226502706,2.16039938,117490.0,117480.0,1.63964342]
[1758226502896,2.6508959,117490.0,117480.0,1.65015342]
[1758226503100,2.93255938,117490.0,117480.0,1.65015342]
[1758226503609,2.93255938,117490.0,117480.0,1.65115342]
[1758226503806,2.16039938,117490.0,117480.0,1.65115342]
[1758226504008,2.93251938,117490.0,117480.0,1.65115342]
[1758226505408,2.93251938,117490.0,117480.0,1.56607292]
[1758226506010,2.95494938,117490.0,117480.0,1.55556292]
[1758226506311,1.16230938,117490.0,117480.0,1.55556292]
[1758226508405,1.16230938,117490.0,117480.0,1.64064342]
[1758226508813,1.16230938,117490.0,117480.0,1.65115342]
[1758226509120,1.13987938,117490.0,117480.0,1.65115342]
[1758226511914,0.0860959,117490.0,117480.0,1.9328169]
[1758226512310,0.8581759,117490.0,117480.0,2.21448038]
[1758226512714,0.8581759,117490.0,117480.0,2.08575991]
[1758226512915,1.7481759,117490.0,117480.0,2.08575991]
[1758226518924,0.8581759,117490.0,117480.0,2.08575991]
[1758226521725,1.1218759,117490.0,117480.0,2.08575991]
[1758226523028,1.1218759,117490.0,117480.0,2.36742339]
[1758226523927,1.1218759,117490.0,117480.0,2.11742339]
[1758226524323,1.0368026,117490.0,117480.0,2.36742339]
[1758226525732,0.7731026,117490.0,117480.0,2.36742339]
[1758226526426,0.7731026,117490.0,117480.0,2.21448038]
[1758226527022,0.8581759,117490.0,117480.0,1.65115342]
[1758226527226,0.8581759,117490.0,117480.0,1.9328169]
[1758226527425,0.8581759,117490.0,117480.0,1.65115342]
[1758226527627,0.8581759,117490.0,117480.0,1.9328169]
[1758226528427,0.7731026,117490.0,117480.0,1.9328169]
[1758226528832,0.7731026,117490.0,117480.0,2.21448038]
[1758226529329,0.7731026,117490.0,117480.0,1.9328169]
[1758226529330,0.8581759,117490.0,117480.0,1.9328169]
[1758226531828,0.8581759,117490.0,117480.0,1.6828169]
[1758226532133,1.41048938,117490.0,117480.0,1.30556292]
[1758226535335,2.08853286,117490.0,117480.0,0.94476292]
[1758226535535,2.08853286,117490.0,117480.0,0.90891292]
[1758226536634,2.08833286,117490.0,117480.0,0.90891292]
[1758226537437,2.08833286,117490.0,117480.0,0.94328292]
[1758226538439,1.31645286,117490.0,117480.0,0.94328292]
[1758226538634,2.08833286,117490.0,117480.0,0.94328292]
[1758226539341,1.83833286,117490.0,117480.0,0.94328292]
[1758226540238,1.83833286,117490.0,117480.0,0.90891292]
[1758226540440,1.83833286,117490.0,117480.0,0.94328292]
[1758226540942,1.31645286,117490.0,117480.0,0.90891292]
[1758226541133,2.08833286,117490.0,117480.0,0.90891292]
[1758226541842,1.31645286,117490.0,117480.0,0.90891292]
[1758226542039,2.08833286,117490.0,117480.0,0.90891292]
[1758226544347,2.09674958,117490.0,117480.0,0.90891292]
[1758226545052,2.11679588,117490.0,117480.0,0.90891292]
[1758226545552,1.34491588,117490.0,117480.0,0.90891292]
[1758226545756,2.10837916,117490.0,117480.0,0.90891292]
[1758226547049,1.33649916,117490.0,117480.0,0.90891292]
[1758226547352,2.10837916,117490.0,117480.0,0.90891292]
[1758226548243,1.345051,117490.0,117480.0,0.90891292]
[1758226548446,2.116931,117490.0,117480.0,0.90891292]
[1758226549558,1.345051,117490.0,117480.0,0.90891292]
[1758226549853,2.116931,117490.0,117480.0,0.90891292]
[1758226553257,1.345051,117490.0,117480.0,0.90891292]
[1758226553448,2.116931,117490.0,117480.0,0.90891292]
[1758226553752,0.7731722,117490.0,117480.0,0.94328292]
[1758226553959,2.10837916,117490.0,117480.0,0.90891292]
[1758226554555,1.85837916,117490.0,117480.0,0.89201]
[1758226554751,2.11708852,117490.0,117480.0,0.62201]
[1758226555146,1.34520852,117490.0,117480.0,0.62201]
[1758226555347,2.11708852,117490.0,117480.0,0.62201]
[1758226557350,2.398752,117490.0,117480.0,0.5862121]
[1758226557554,2.398752,117490.0,117480.0,0.1601455]
[1758226557756,0.1404804,117480.0,117470.0,0.0002]
[1758226557963,0.1404877,117470.0,117460.0,0.0002]
[1758226558261,0.1402949,117460.0,117450.0,0.40333329]
[1758226558560,0.9121749,117460.0,117450.0,1.22333329]
[1758226558759,0.9131975,117460.0,117450.0,1.22333329]
[1758226559161,1.47652446,117460.0,117450.0,1.22333329]
[1758226559362,1.47752446,117460.0,117450.0,1.22533329]
[1758226559663,1.47752446,117460.0,117450.0,1.29384903]
[1758226560565,0.70564446,117460.0,117450.0,1.29384903]
[1758226560763,1.47756446,117460.0,117450.0,1.29384903]
[1758226561160,1.47756446,117460.0,117450.0,1.29584903]
[1758226561657,0.70564446,117460.0,117450.0,1.29584903]
[1758226561858,1.7598575,117460.0,117450.0,1.29584903]
[1758226562359,1.7598575,117460.0,117450.0,1.28736574]
[1758226563760,0.9878575,117460.0,117450.0,1.29584903]
[1758226563961,1.7714275,117460.0,117450.0,0.824]
[1758226564166,2.5433875,117460.0,117450.0,0.824]
[1758226564367,2.1206175,117460.0,117450.0,0.824]
[1758226564760,1.3486575,117460.0,117450.0,0.824]
[1758226564959,2.1206175,117460.0,117450.0,0.824]
[1758226565866,1.3486575,117460.0,117450.0,0.824]
[1758226566166,2.1206175,117460.0,117450.0,0.85805]
[1758226566366,2.1206175,117460.0,117450.0,0.86673856]
[1758226566563,0.5031175,117460.0,117450.0,0.86673856]
[1758226566766,0.9143975,117460.0,117450.0,1.65030856]
[1758226567068,0.5650875,117460.0,117450.0,1.65030856]
[1758226567370,1.7604975,117460.0,117450.0,1.71949829]
[1758226567567,1.7604975,117460.0,117450.0,1.65030856]
[1758226569261,1.7605375,117460.0,117450.0,1.65030856]
[1758226570273,1.7605375,117460.0,117450.0,1.22753856]
[1758226570573,1.7605375,117460.0,117450.0,0.85805]
[1758226570866,2.5441075,117460.0,117450.0,0.824]
[1758226575173,2.1213375,117460.0,117450.0,0.824]
[1758226580374,2.5441075,117460.0,117450.0,0.824]
[1758226580679,2.5440275,117460.0,117450.0,0.824]
[1758226582281,1.7714275,117460.0,117450.0,0.824]
[1758226582482,1.3486575,117460.0,117450.0,0.824]
[1758226582681,2.1211775,117460.0,117450.0,0.824]
[1758226583582,2.1211375,117460.0,117450.0,0.824]
[1758226585685,1.3486575,117460.0,117450.0,0.824]
[1758226585879,2.1210175,117460.0,117450.0,0.824]
[1758226590891,2.1207775,117460.0,117450.0,0.824]
[1758226596391,1.7599775,117460.0,117450.0,0.824]
[1758226596591,2.1207775,117460.0,117450.0,0.824]
[1758226597991,1.3486575,117460.0,117450.0,0.824]
[1758226598384,2.1207375,117460.0,117450.0,0.824]
[1758226599491,1.3486575,117460.0,117450.0,0.824]
[1758226599690,2.1207375,117460.0,117450.0,0.85927]
[1758226600395,2.1207375,117460.0,117450.0,0.824]
[1758226601501,1.3486575,117460.0,117450.0,0.85927]
[1758226601793,2.1207375,117460.0,117450.0,0.85927]
[1758226602087,2.1207375,117460.0,117450.0,0.824]
[1758226602294,2.1207375,117460.0,117450.0,0.85927]
[1758226603796,1.3486575,117460.0,117450.0,0.85927]
[1758226603994,2.1207375,117460.0,117450.0,0.85927]
[1758226604387,1.3486575,117460.0,117450.0,0.85927]
[1758226604587,2.1207375,117460.0,117450.0,0.85927]
[1758226604988,1.3486575,117460.0,117450.0,0.85927]
[1758226605188,2.1207375,117460.0,117450.0,0.85927]
[1758226613599,2.1207375,117460.0,117450.0,0.9443722]
[1758226614596,2.1207375,117460.0,117450.0,0.85927]
[1758226616603,2.1207375,117460.0,117450.0,0.66927]
[1758226616805,3.9138575,117460.0,117450.0,0.66927]
[1758226621909,3.63206316,117460.0,117450.0,0.66927]
[1758226624110,2.2962375,117460.0,117450.0,0.66927]
[1758226624301,3.63206316,117460.0,117450.0,0.66927]
[1758226625003,3.63206316,117460.0,117450.0,0.634]
[1758226625209,3.63206316,117460.0,117450.0,0.524]
[1758226635710,3.91393599,117460.0,117450.0,0.524]
[1758226635911,4.27473599,117460.0,117450.0,0.194]
[1758226636312,4.52473599,117460.0,117450.0,0.194]
[1758226636519,0.1404221,117450.0,117440.0,0.0002]
[1758226636715,0.1404294,117440.0,117430.0,0.05271875]
[1758226637018,1.83705506,117440.0,117430.0,0.97251875]
[1758226637312,1.83807766,117440.0,117430.0,0.97251875]
[1758226637723,1.83807766,117440.0,117430.0,0.97651875]
[1758226638717,1.83807766,117440.0,117430.0,0.97251875]
[1758226638913,1.83807766,117440.0,117430.0,0.97551875]
[1758226639721,1.84659405,117440.0,117430.0,0.97551875]
[1758226640019,1.84759405,117440.0,117430.0,0.97751875]
[1758226640717,1.84759405,117440.0,117430.0,0.63209875]
[1758226641711,2.37946688,117440.0,117430.0,0.62209875]
[1758226642016,2.37950688,117440.0,117430.0,0.62209875]
[1758226642219,2.09763405,117440.0,117430.0,0.62209875]
[1758226643812,1.32551405,117440.0,117430.0,0.62209875]
[1758226644115,2.37950688,117440.0,117430.0,0.62209875]
[1758226645016,0.1391566,117430.0,117420.0,0.0002]
[1758226645319,1.06370226,117430.0,117420.0,0.5]
[1758226645620,1.06472486,117430.0,117420.0,0.5]
[1758226646523,1.83688486,117430.0,117420.0,0.5]
[1758226646819,1.83688486,117430.0,117420.0,0.502]
[1758226647219,1.06472486,117430.0,117420.0,0.502]
[1758226647423,1.85749561,117430.0,117420.0,0.503]
[1758226648217,1.92404851,117430.0,117420.0,0.503]
[1758226648413,1.92404851,117430.0,117420.0,0.5]
[1758226648722,1.92704851,117430.0,117420.0,0.501]
[1758226651020,2.17704851,117430.0,117420.0,0.161]
[1758226651522,1.40488851,117430.0,117420.0,0.161]
[1758226651720,2.17708851,117430.0,117420.0,0.161]
[1758226652617,1.40488851,117430.0,117420.0,0.161]
[1758226653026,2.17708851,117430.0,117420.0,0.161]
[1758226653224,1.40488851,117430.0,117420.0,0.161]
[1758226653422,2.17712851,117430.0,117420.0,0.161]
[1758226654020,1.40488851,117430.0,117420.0,0.161]
[1758226654222,2.17712851,117430.0,117420.0,0.161]
[1758226656628,1.40488851,117430.0,117420.0,0.161]
[1758226656828,2.17716851,117430.0,117420.0,0.161]
[1758226659430,1.92716851,117430.0,117420.0,0.161]
[1758226679746,3.72096851,117430.0,117420.0,0.161]
[1758226681848,2.66681568,117430.0,117420.0,0.4434]
[1758226682046,3.43909568,117430.0,117420.0,0.4434]
[1758226683550,3.43909568,117430.0,117420.0,0.6834]
[1758226683755,4.00326167,117430.0,117420.0,0.6834]
[1758226685354,2.80796226,117430.0,117420.0,0.6834]
[1758226685656,3.58024226,117430.0,117420.0,1.10641941]
[1758226685854,3.58024226,117430.0,117420.0,0.6834]
[1758226687450,3.58024226,117430.0,117420.0,0.69200693]
[1758226688949,1.95758995,117430.0,117420.0,1.62316965]
[1758226689156,2.72986995,117430.0,117420.0,1.94387965]
[1758226689348,3.13194936,117430.0,117420.0,1.94387965]
[1758226690254,1.81843335,117430.0,117420.0,2.30467965]
[1758226690554,2.59067335,117430.0,117420.0,2.30467965]
[1758226690954,2.59067335,117430.0,117420.0,2.45762266]
[1758226693954,2.59067335,117430.0,117420.0,2.52661206]
[1758226694149,0.02463335,117430.0,117420.0,2.52661206]
[1758226694349,0.75063335,117430.0,117420.0,2.94963147]
[1758226694553,0.7310226,117430.0,117420.0,2.94963147]
[1758226695558,0.0050226,117430.0,117420.0,2.94963147]
[1758226695758,0.1180308,117460.0,117450.0,0.04911]
[1758226695959,0.94477021,117460.0,117450.0,1.82803161]
[1758226697356,0.54105021,117460.0,117450.0,1.82803161]
[1758226697561,1.31621021,117460.0,117450.0,1.82803161]
[1758226697963,1.31921021,117460.0,117450.0,1.82803161]
[1758226699563,0.8961908,117460.0,117450.0,1.82803161]
[1758226699767,0.8632608,117460.0,117450.0,1.82803161]
[1758226699960,1.28628021,117460.0,117450.0,1.82803161]
[1758226701672,0.8632608,117460.0,117450.0,1.82803161]
[1758226702571,1.28628021,117460.0,117450.0,1.82803161]
[1758226702770,0.8632608,117460.0,117450.0,1.82803161]
[1758226703071,1.28628021,117460.0,117450.0,1.82803161]